bitfinex/quotes_ETHUSD_20241207
["timestamp","ask_amount","ask_price","bid_price","bid_amount"]
[1733537892236,0.7798,4001.0,4000.9,1.7496]
[1733537892726,0.7798,4001.0,4000.3,2.51755]
[1733537892727,2.04689205,4001.0,4000.3,2.51755]
[1733537892925,1.86034283,4001.0,4000.7,1.74968]
[1733537893144,2.04689205,4001.0,4000.8,1.74964]
[1733537893366,2.04689205,4001.0,4000.3,2.51755]
[1733537893367,2.50661417,4001.0,4000.9,1.7496]
[1733537893874,2.5596268,4001.0,4000.9,1.7496]
[1733537894426,2.37306007,4001.0,4000.9,1.7496]
[1733537894773,1.47908397,4001.0,4000.9,1.7496]
[1733537894931,0.83281263,4001.0,4000.7,1.74968]
[1733537895126,0.83281263,4001.0,4000.1,0.7677]
[1733537895127,1.01937936,4001.0,4000.6,1.74972]
[1733537895356,1.04932735,4000.9,4000.6,1.74972]
[1733537895572,1.04932735,4000.9,4000.1,2.51762]
[1733537895573,0.05290537,4000.8,4000.1,0.7677]
[1733537895887,1.08054283,4000.3,3999.5,0.7677]
[1733537896091,0.18603428,4000.2,3999.5,0.7677]
[1733537896238,0.23840843,4000.2,3999.9,1.75003]
[1733537897541,0.86312408,4000.1,3999.9,1.75003]
[1733537897737,0.05221328,4000.0,3999.9,1.75003]
[1733537898437,1.29466718,4000.2,3999.9,1.75003]
[1733537898778,0.91517713,4000.1,3999.9,1.75003]
[1733537899121,0.05196738,4000.1,3999.9,1.75003]
[1733537899948,0.05196738,4000.1,3997.6,1.55290653]
[1733537899949,0.7798,3999.9,3999.3,1.7503]
[1733537900148,0.05140949,3999.8,3999.3,1.7503]
[1733537900348,0.05140949,3999.8,3998.9,0.7677]
[1733537900349,0.05140949,3999.8,3999.4,1.75024]
[1733537900568,0.76673884,3999.8,3999.4,1.75024]
[1733537900934,0.76673884,3999.8,3999.2,1.75033]
[1733537901542,0.8633437,3999.7,3999.2,1.75033]
[1733537901737,0.05123396,3999.6,3998.5,1.75063]
[1733537902092,0.05123396,3999.6,3999.5,1.75021]
[1733537902381,0.40703254,3999.6,3999.5,1.75021]
[1733537902570,0.45809112,3999.6,3999.5,1.75021]
[1733537902753,0.05105858,3999.6,3999.5,1.75021]
[1733537902979,0.7798,3999.9,3999.5,1.75021]
[1733537903181,0.05105858,3999.6,3999.5,1.75021]
[1733537903396,1.29500673,4000.0,3999.5,1.75021]
[1733537903596,3.11730236,4000.2,4000.0,1.75]
[1733537903813,0.86333336,4000.1,4000.0,1.75]
[1733537904016,1.04249563,4000.3,4000.2,1.74991]
[1733537904226,2.3384658,4000.9,4000.6,1.7497]
[1733537904514,0.41607614,4000.8,4000.7,1.74969]
[1733537904715,0.7798,4001.1,4001.0,1.74956]
[1733537905100,1.64296518,4001.1,4001.0,1.74956]
[1733537905413,2.93771296,4001.1,4001.0,1.74956]
[1733537905623,3.20040859,4001.1,4001.0,1.74956]
[1733537905770,3.38691795,4001.1,4001.0,1.74956]
[1733537905975,2.15791296,4001.1,4001.0,1.74956]
[1733537906927,3.20040859,4001.1,4001.0,1.74956]
[1733537907077,3.38695693,4001.1,4001.0,1.74956]
[1733537907281,3.20040859,4001.1,4001.0,1.74956]
[1733537907502,3.46955348,4001.1,4001.0,1.74956]
[1733537907707,2.34456067,4001.1,4001.0,1.74956]
[1733537908094,0.86316518,4001.1,4001.0,1.74956]
[1733537908417,0.91406892,4001.1,4001.0,1.74956]
[1733537908912,2.20929249,4001.1,4001.0,1.74956]
[1733537909142,2.39597982,4001.1,4001.0,1.74956]
[1733537909483,1.10075625,4001.1,4001.0,1.74956]
[1733537909714,0.05090374,4001.1,4001.0,1.924516]
[1733537909935,1.1e-06,4001.3,4001.2,1.74947]
[1733537910218,0.91453228,4001.3,4001.2,1.74947]
[1733537911321,3.43889674,4001.3,4001.2,1.74947]
[1733537911476,3.43889674,4001.3,4001.0,1.74955]
[1733537911682,2.34533548,4001.2,4001.0,1.74955]
[1733537911896,0.91447769,4001.1,4001.0,1.74955]
[1733537912228,0.05101104,4001.1,4001.0,1.74955]
[1733537912594,1.1e-06,4001.3,4001.2,1.74947]
[1733537915948,0.05130939,4001.3,4001.2,1.74947]
[1733537917344,0.8042,4001.2,4000.2,0.7924]
[1733537917515,3.25296672,4001.1,4001.0,1.74956]
[1733537917717,5.59060919,4001.1,4001.0,1.74956]
[1733537918109,6.38646456,4001.1,4000.4,1.74982]
[1733537918463,6.38646456,4001.1,4000.8,1.74964]
[1733537918464,2.1586175,4001.0,4000.8,1.74964]
[1733537918751,3.25226889,4000.9,4000.5,1.74976]
[1733537918924,2.3384658,4000.7,4000.5,1.74976]
[1733537919119,0.85498936,4000.6,4000.3,1.74986]
[1733537919336,1.27858444,4000.6,4000.3,1.74986]
[1733537919510,0.86371127,4000.5,4000.3,1.74986]
[1733537919705,0.9141594,4000.4,4000.3,1.74986]
[1733537921661,2.20997052,4000.4,4000.0,1.74996]
[1733537921898,0.86371127,4000.3,3999.2,2.30035]
[1733537922077,0.05044813,4000.4,4000.1,1.74992]
[1733537922411,0.86388057,4000.3,4000.1,1.74992]
[1733537922566,0.049729,4000.3,4000.1,1.74992]
[1733537922896,1.04249563,4000.5,4000.1,1.74992]
[1733537923193,2.15990653,4000.4,4000.1,1.74992]
[1733537923497,4.899077,4000.3,3999.8,1.75005]
[1733537923654,3.20281946,4000.2,3999.8,1.75005]
[1733537923861,2.16032383,4000.1,3999.8,1.75005]
[1733537924083,0.86396261,4000.0,3999.8,1.75005]
[1733537924425,0.04944869,4000.0,3999.9,1.75004]
[1733537924954,0.86435214,4000.0,3999.9,1.75004]
[1733537925184,0.91380083,4000.0,3999.9,1.75004]
[1733537925766,0.91381868,4000.0,3999.9,1.75004]
[1733537926082,0.91381817,4000.0,3999.9,1.75004]
[1733537926289,0.91381817,4000.0,3999.4,1.75025]
[1733537926527,0.04944869,4000.0,3999.0,0.7924]
[1733537926820,0.04944869,4000.0,3999.9,1.75004]
[1733537927170,1.04249563,4000.2,3999.9,1.75004]
[1733537927403,2.21046973,4000.1,3999.9,1.75004]
[1733537927604,0.04952913,4000.1,3999.9,1.75004]
[1733537928190,0.86437916,4000.0,3999.9,1.75004]
[1733537928397,0.91382785,4000.0,3999.9,1.75004]
[1733537928981,0.04944869,4000.0,3999.9,1.75004]
[1733537929171,3.38096143,4000.3,3999.9,1.75004]
[1733537929400,3.25293251,4000.2,3999.9,1.75004]
[1733537929707,3.20332295,4000.1,3999.9,1.75004]
[1733537929873,2.21030971,4000.0,3999.1,1.75039]
[1733537930073,2.9651172,3999.9,3999.6,1.75017]
[1733537930272,0.04928779,3999.8,3999.0,0.7924]
[1733537930475,0.04928779,3999.8,3999.7,1.7501]
[1733537930673,0.91364264,3999.8,3999.7,1.7501]
[1733537932093,0.91364264,3999.8,3999.5,1.75021]
[1733537932094,2.21012081,3999.8,3999.5,1.75021]
[1733537932321,0.86435485,3999.7,3999.5,1.75021]
[1733537932614,0.04899522,3999.6,3999.5,1.75021]
[1733537932981,1.29638861,3999.8,3999.7,1.75013]
[1733537933181,2.20979883,3999.8,3999.7,1.75013]
[1733537933375,2.20970497,3999.8,3999.7,1.75013]
[1733537934417,0.91335203,3999.8,3999.7,1.75013]
[1733537935678,0.91335203,3999.8,3999.2,1.75033]
[1733537935874,0.71538182,3999.8,3999.3,1.7503]
[1733537936080,0.86408016,3999.7,3999.4,1.75025]
[1733537936401,0.91284888,3999.6,3999.4,1.75025]
[1733537936610,1.07984686,3999.5,3999.4,1.75025]
[1733537937110,1.12854215,3999.5,3999.4,1.75025]
[1733537938194,0.46201635,3999.5,3999.0,1.75043]
[1733537938393,1.07984686,3999.1,3999.0,1.75043]
[1733537938886,1.1278105,3999.1,3999.0,1.75043]
[1733537940705,0.04796364,3999.1,3999.0,1.75043]
[1733537940898,0.8042,3999.9,3999.3,1.7503]
[1733537940899,1.07984686,3999.4,3999.3,1.7503]
[1733537941125,1.12795435,3999.4,3999.3,1.7503]
[1733537941437,1.99170714,3999.4,3998.7,1.75053]
[1733537941649,1.07984686,3998.9,3998.6,1.7506]
[1733537941829,1.07984686,3998.7,3998.6,1.7506]
[1733537942199,1.12729337,3998.7,3998.6,1.7506]
[1733537943747,1.89629337,3998.7,3998.6,1.7506]
[1733537943942,1.89629337,3998.7,3997.9,1.75089]
[1733537944145,1.07984686,3998.2,3997.9,1.75089]
[1733537944301,1.07984686,3998.2,3998.1,1.75083]
[1733537944501,2.34089414,3998.6,3997.9,1.75089]
[1733537944697,2.34089414,3998.6,3998.0,1.75087]
[1733537945013,2.34089414,3998.6,3998.5,1.75065]
[1733537947250,3.10989414,3999.4,3999.1,1.75039]
[1733537947403,0.60184457,3999.3,3999.1,1.75039]
[1733537947604,0.41523898,3999.3,3999.1,1.75039]
[1733537947805,0.05339645,3999.2,3999.1,1.75039]
[1733537948552,2.34089414,3999.4,3999.3,1.7503]
[1733537948716,0.18659008,3999.6,3999.5,1.75021]
[1733537948913,0.75809973,3999.6,3999.5,1.75021]
[1733537949159,0.08243013,3999.7,3999.6,1.75017]
[1733537949160,0.18659008,3999.7,3999.6,1.75017]
[1733537949321,2.34089414,3999.8,3999.7,1.75013]
[1733537949873,2.34089414,3999.8,3999.2,1.75032]
[1733537950159,2.34089414,3999.8,3999.5,1.75021]
[1733537950344,0.18666091,3999.7,3999.5,1.75021]
[1733537950545,0.5770483,3999.6,3999.5,1.75021]
[1733537950752,0.39035937,3999.6,3999.5,1.75021]
[1733537951264,2.34089414,3999.8,3998.7,0.7735]
[1733537951557,2.34089414,3999.8,3999.7,1.75013]
[1733537952521,0.08247545,4000.0,3999.9,1.75004]
[1733537952723,0.26919766,4000.0,3999.9,1.75004]
[1733537952957,2.34089414,4000.2,4000.0,1.75]
[1733537952958,0.26919766,4000.1,4000.0,1.75]
[1733537953266,2.34089414,4000.2,3999.9,1.75004]
[1733537953462,2.34089414,4000.2,4000.1,1.74995]
[1733537954319,0.08250637,4000.4,4000.2,1.74991]
[1733537954523,0.08250412,4000.5,4000.2,1.74991]
[1733537954763,0.26920703,4000.4,4000.3,1.74986]
[1733537954920,0.18670291,4000.5,4000.4,1.74982]
[1733537955128,0.76382833,4000.5,4000.4,1.74982]
[1733537955667,0.68132421,4000.5,4000.4,1.74982]
[1733537955852,0.76382349,4000.5,4000.4,1.74982]
[1733537956359,0.4946213,4000.5,4000.4,1.74982]
[1733537956568,0.68128462,4000.5,4000.4,1.74982]
[1733537956723,0.4946213,4000.5,4000.4,1.74982]
[1733537957128,0.68128721,4000.5,4000.4,1.74982]
[1733537957749,0.18666591,4000.5,4000.4,1.74982]
[1733537957962,2.34089414,4000.6,4000.5,1.74978]
[1733537958173,2.34089414,4000.6,4000.4,1.74982]
[1733537958174,0.18664676,4000.6,4000.4,1.74982]
[1733537958337,0.18664676,4000.8,4000.4,1.74982]
[1733537958662,0.18664676,4000.8,4000.7,1.74969]
[1733537958875,1.04942732,4000.8,4000.7,1.74969]
[1733537959224,1.04942732,4000.8,4000.4,1.74982]
[1733537959225,0.26911933,4000.9,4000.4,1.74982]
[1733537959462,0.18664676,4000.9,4000.8,1.74965]
[1733537959643,1.04957091,4000.9,4000.8,1.74965]
[1733537960042,0.86292415,4000.9,4000.8,1.74965]
[1733537960246,2.8979208,4000.9,4000.8,1.74965]
[1733537960478,0.86292415,4000.9,4000.8,1.74965]
[1733537961087,2.34089414,4001.0,4000.9,1.7496]
[1733537961245,5.7274471,4001.0,4000.9,1.7496]
[1733537961445,5.54093301,4001.0,4000.9,1.7496]
[1733537961647,4.24640692,4001.0,4000.9,1.7496]
[1733537961892,4.49843738,4001.0,4000.9,1.7496]
[1733537962269,4.49891728,4001.0,4000.9,1.7496]
[1733537962843,4.49888356,4001.0,4000.9,1.7496]
[1733537963255,5.54137919,4001.0,4000.9,1.7496]
[1733537964310,4.49888356,4001.0,4000.9,1.7496]
[1733537964468,5.54137919,4001.0,4000.9,1.7496]
[1733537965199,5.59143698,4001.0,4000.9,1.7496]
[1733537966172,4.54894135,4001.0,4000.9,1.7496]
[1733537966900,2.20804721,4001.0,4000.9,1.7496]
[1733537967100,0.91307494,4001.0,4000.9,1.7496]
[1733537969098,0.05005779,4001.0,4000.9,1.7496]
[1733537969414,2.7e-07,4001.0,4000.9,2.176881]
[1733537969621,1.1e-06,4001.3,4000.9,2.97537277]
[1733537969774,1.1e-06,4001.3,4001.2,1.74947]
[1733537969979,1.1e-06,4001.3,4001.2,2.52297]
[1733537970181,1.1e-06,4001.3,4001.2,2.9929551]
[1733537970489,1.1e-06,4001.3,4001.2,3.01794439]
[1733537971508,1.1e-06,4001.3,4001.2,2.9929551]
[1733537974020,1.1e-06,4001.3,4001.2,3.5429551]
[1733537975937,1.1e-06,4001.3,4001.2,3.56794058]
[1733537976136,1.1e-06,4001.3,4001.2,3.5429551]
[1733537976429,1.1e-06,4001.3,4001.2,2.9929551]
[1733537977829,1.1e-06,4001.3,4001.2,3.01794401]
[1733537978032,1.1e-06,4001.3,4001.2,2.9929551]
[1733537979070,1.1e-06,4001.3,4001.2,3.5429551]
[1733537983842,1.1e-06,4001.3,4001.2,3.56794164]
[1733537984045,1.1e-06,4001.3,4001.2,3.5429551]
[1733537990917,1.1e-06,4001.3,4001.2,3.56794162]
[1733537991358,1.1e-06,4001.3,4001.2,3.5429551]
[1733537991657,1.1e-06,4001.3,4001.2,2.2194551]
[1733537991953,1.1e-06,4001.3,4001.2,3.57514378]
[1733537992642,1.1e-06,4001.3,4001.2,6.57514378]
[1733537992846,1.1e-06,4001.3,4001.2,6.5501551]
[1733538009570,1.1e-06,4001.3,4001.2,2.2194551]
[1733538009877,9.15e-06,4001.3,4001.2,1.74947]
[1733538010032,0.7982,4002.0,4001.2,1.74947]
[1733538010240,0.7982,4002.0,4001.9,1.74916]
[1733538010474,1.84918062,4002.0,4001.9,1.74916]
[1733538010774,3.1451888,4002.0,4001.9,1.74916]
[1733538011068,1.96143564,4002.0,4001.9,1.74916]
[1733538011272,3.25774991,4002.0,4001.9,1.74916]
[1733538011456,3.2577216,4002.0,4001.9,1.74916]
[1733538011643,5.07389723,4002.0,4001.9,1.74916]
[1733538012054,5.07664536,4002.0,4001.9,1.74916]
[1733538012249,4.0314016,4002.0,4001.9,1.74916]
[1733538012779,4.38271385,4002.0,4001.9,1.74916]
[1733538012938,4.3032426,4002.0,4001.9,1.74916]
[1733538013142,3.33719007,4002.0,4001.9,1.74916]
[1733538013346,4.30348135,4002.0,4001.9,1.74916]
[1733538014065,4.11648004,4002.0,4001.9,1.74916]
[1733538014255,3.25771076,4002.0,4001.9,1.74916]
[1733538014983,5.13429478,4002.0,4001.9,1.74916]
[1733538015196,0.7719,4001.9,4001.6,1.74929]
[1733538015343,4.92939914,4001.8,4001.7,1.74925]
[1733538015542,7.13447927,4001.8,4001.7,1.74925]
[1733538016372,5.04112705,4001.8,4001.7,1.74925]
[1733538016677,7.61642558,4001.8,4001.7,1.82729459]
[1733538017054,5.52298245,4001.8,4001.7,1.82729459]
[1733538017253,5.52298245,4001.8,4001.7,0.07804459]
[1733538017254,6.60110924,4001.8,4001.7,0.07804459]
[1733538017670,8.44099887,4001.8,4001.4,1.74935]
[1733538017873,3.94348821,4001.5,4001.4,1.74935]
[1733538018188,6.00748102,4001.5,4001.4,1.82740151]
[1733538018343,6.00748102,4001.5,4001.4,0.07805151]
[1733538018344,9.86095612,4001.5,4001.4,0.07805151]
[1733538018544,0.7719,4001.4,4000.5,1.74978]
[1733538018840,6.47726649,4001.5,3999.6,0.788]
[1733538018841,1.81859262,4000.7,4000.6,1.74971]
[1733538019041,3.04479257,4000.7,4000.6,1.82777259]
[1733538019242,5.39346585,4000.7,4000.6,0.07806259]
[1733538019485,5.65897434,4000.7,4000.6,0.07806259]
[1733538019673,0.7719,4000.6,3999.8,1.75007]
[1733538019881,0.7719,3999.8,3999.7,1.75013]
[1733538020081,0.7719,3999.8,3999.7,1.82820001]
[1733538020390,0.7719,4000.1,3999.7,2.01102001]
[1733538020541,0.7719,4000.1,3999.9,1.75004]
[1733538020745,0.7719,4000.1,4000.0,0.07807001]
[1733538021078,1.63655918,4000.1,4000.0,0.07807001]
[1733538021285,1.63650031,4000.1,4000.0,0.07807001]
[1733538021483,1.85002679,4000.1,4000.0,0.07807001]
[1733538021650,2.71426124,4000.1,3999.9,1.75004]
[1733538021990,1.85002679,4000.1,3999.9,1.75004]
[1733538022653,0.86384785,4000.0,3999.9,1.75004]
[1733538022854,1.39680644,4000.0,3999.9,1.75004]
[1733538023309,2.22860644,4000.0,3999.9,1.75004]
[1733538023587,0.8318,3999.9,3999.7,1.7501]
[1733538023772,1.07812679,3999.8,3999.7,1.7501]
[1733538024555,0.8318,3999.9,3999.7,1.7501]
[1733538026293,1.56942677,4000.4,3999.3,2.55689]
[1733538026294,0.8318,4000.3,3999.3,2.55689]
[1733538026505,0.8318,4000.3,4000.2,1.74991]
[1733538027291,1.04628451,4000.6,4000.4,1.74978]
[1733538027500,0.8318,4000.7,4000.6,1.74973]
[1733538032076,0.913377,4000.7,4000.6,1.74973]
[1733538040679,0.913377,4000.7,3999.4,0.255689]
[1733538040680,0.55,4000.3,3998.0,1.86717102]
[1733538040879,3.07928974,3999.0,3998.5,1.75063]
[1733538041106,3.07928974,3999.0,3998.1,1.75083]
[1733538041107,0.08035928,3998.9,3998.1,1.75083]
[1733538041415,0.08035928,3998.9,3998.7,1.75054]
[1733538044916,0.08035928,3998.9,3998.1,1.75083]
[1733538045226,0.08035928,3998.9,3998.5,1.75065]
[1733538045725,0.39632418,3998.9,3998.5,1.75065]
[1733538047829,0.39632418,3998.9,3998.4,1.75069]
[1733538048445,0.39632418,3998.9,3997.9,1.75087]
[1733538049707,2.33918974,3998.6,3997.5,0.825]
[1733538049908,2.33918974,3998.6,3998.2,1.75077]
[1733538050117,0.31156047,3998.5,3998.2,1.75077]
[1733538050437,0.0776415,3998.5,3998.2,1.75077]
[1733538050639,0.0776415,3998.5,3997.6,1.75105]
[1733538050827,0.0776415,3998.5,3997.5,0.825]
[1733538050828,2.18918974,3998.2,3997.8,1.75096]
[1733538051028,0.07733375,3998.1,3997.8,1.75096]
[1733538051233,0.07733375,3998.1,3997.2,2.5337]
[1733538051234,2.18918974,3998.2,3997.2,2.5337]
[1733538051531,2.18918974,3998.2,3997.6,1.75104]
[1733538051841,0.29292897,3998.1,3997.6,1.75104]
[1733538053002,0.7401,3998.0,3997.6,1.75104]
[1733538053225,0.0765061,3997.9,3997.6,1.75104]
[1733538055953,0.0765061,3997.9,3997.7,1.751]
[1733538056634,2.33918974,3997.8,3996.9,2.53383]
[1733538056808,0.07620082,3997.7,3997.0,1.75131]
[1733538057015,0.07620082,3997.7,3997.5,1.75107]
[1733538057223,0.31554906,3997.7,3997.5,1.75107]
[1733538057460,0.07615559,3997.6,3997.5,1.75107]
[1733538057833,2.33918974,3997.8,3997.5,1.75107]
[1733538058036,0.07623499,3997.7,3997.5,1.75107]
[1733538058233,2.33918974,3997.8,3997.5,1.75107]
[1733538058428,0.07623499,3997.7,3997.5,1.75107]
[1733538058661,2.33918974,3997.8,3997.5,1.75107]
[1733538058848,0.07623499,3997.7,3997.5,1.75107]
[1733538059048,2.33918974,3997.8,3997.5,1.75107]
[1733538059238,0.07623499,3997.7,3997.5,1.75107]
[1733538059436,2.33918974,3997.8,3997.5,1.75107]
[1733538059641,0.07623499,3997.7,3997.5,1.75107]
[1733538059967,2.33918974,3997.8,3997.5,1.75107]
[1733538060130,0.07615559,3997.6,3997.5,1.75107]
[1733538060327,2.33918974,3997.8,3997.5,1.75107]
[1733538060553,0.07615559,3997.6,3997.5,1.75107]
[1733538060741,2.33918974,3997.8,3997.5,1.75107]
[1733538060955,0.07615559,3997.6,3997.5,1.75107]
[1733538061155,2.33918974,3997.8,3997.5,1.75107]
[1733538061670,0.07623499,3997.7,3997.5,1.75107]
[1733538061844,2.33918974,3997.8,3997.6,1.75105]
[1733538062040,0.07623499,3997.7,3996.9,0.7825]
[1733538062242,0.07623499,3997.7,3997.6,1.75105]
[1733538062450,2.33918974,3997.8,3997.3,1.75115]
[1733538062623,0.7401,3998.0,3997.7,1.751]
[1733538063568,0.7401,3998.0,3996.9,0.7825]
[1733538063772,0.7401,3998.0,3997.4,1.75112]
[1733538064274,0.7401,3998.0,3997.5,1.75109]
[1733538064572,0.07630587,3997.9,3997.5,1.75109]
[1733538065460,1.08070577,3997.6,3997.5,1.75109]
[1733538065670,1.15685648,3997.6,3997.5,1.75109]
[1733538072220,0.07615071,3997.6,3997.5,1.75109]
[1733538072415,1.08070577,3997.9,3997.8,1.75096]
[1733538072613,1.26772021,3997.9,3997.8,1.75096]
[1733538072825,1.26771994,3997.9,3997.8,1.75096]
[1733538074821,1.34406488,3997.9,3997.8,1.75096]
[1733538077931,1.34406488,3997.9,3997.6,1.75104]
[1733538077932,1.42350533,3997.9,3997.6,1.75104]
[1733538078103,0.18701417,3997.8,3997.6,1.75104]
[1733538078442,0.07618616,3997.7,3997.3,1.75115]
[1733538078631,1.08070577,3997.4,3997.0,1.75131]
[1733538078935,1.08070577,3997.4,3997.3,1.75118]
[1733538080656,1.08070577,3997.4,3996.9,0.7825]
[1733538080980,4.1243179,3998.4,3997.2,1.75122]
[1733538080981,0.7401,3998.1,3997.2,1.75122]
[1733538081126,8.94,3998.2,3997.2,1.75122]
[1733538081127,0.26686087,3998.0,3997.2,1.75122]
[1733538081329,1.00696087,3997.9,3997.2,1.75122]
[1733538081661,0.26686087,3997.8,3997.2,1.75122]
[1733538081968,0.34296886,3997.7,3997.2,1.75122]
[1733538082123,1.08070577,3997.3,3996.6,0.8027]
[1733538082323,0.7401,3997.3,3996.9,1.75134]
[1733538082556,0.26308217,3997.2,3996.9,1.75134]
[1733538082866,0.26308217,3997.2,3996.9,1.75132]
[1733538082867,0.26687628,3997.1,3996.9,1.75132]
[1733538083025,0.26292334,3997.0,3996.9,1.75132]
[1733538083223,0.34242709,3997.0,3996.9,1.75132]
[1733538083440,0.26292334,3997.0,3996.9,1.75132]
[1733538084369,0.07555215,3997.0,3996.9,1.75132]
[1733538084740,1.08070577,3997.0,3996.9,1.75132]
[1733538084940,1.15600882,3997.0,3996.9,1.75132]
[1733538085957,1.15600882,3997.0,3995.6,1.87662778]
[1733538085958,0.7401,3996.9,3995.4,3.50398]
[1733538086274,1.08070577,3997.2,3995.4,3.50398]
[1733538086275,1.08070577,3995.5,3995.4,1.75201]
[1733538086486,1.04628451,3995.9,3995.6,1.75192]
[1733538086686,1.08070577,3995.7,3995.6,1.75192]
[1733538086885,1.08070577,3995.7,3995.3,0.625]
[1733538087060,1.04628451,3995.9,3995.4,1.75201]
[1733538087245,2.1633587,3995.8,3995.4,1.75201]
[1733538087445,0.86534348,3995.7,3995.4,1.75201]
[1733538087668,1.08070577,3995.5,3995.4,1.75201]
[1733538089160,1.82080577,3995.5,3995.3,0.625]
[1733538089459,0.07322074,3995.4,3995.3,0.625]
[1733538094294,1.08070577,3995.5,3995.4,1.75201]
[1733538095370,0.7401,3996.3,3995.4,1.75201]
[1733538095682,8.94,3996.5,3995.4,1.75201]
[1733538095683,8.94,3996.5,3996.3,1.7516]
[1733538096700,1.08070577,3996.4,3996.3,1.7516]
[1733538097306,1.15088333,3996.4,3996.3,1.7516]
[1733538097464,0.07017756,3996.4,3996.3,1.7516]
[1733538097673,1.15088333,3996.4,3996.3,1.7516]
[1733538098375,2.23398166,3996.4,3996.3,1.7516]
[1733538098584,1.15327589,3996.4,3996.3,1.7516]
[1733538099082,7.56e-06,3996.4,3996.3,1.7516]
[1733538099283,4.12979717,3997.6,3996.3,1.7516]
[1733538099483,0.33272192,3997.5,3997.4,1.75113]
[1733538099697,0.93031014,3997.5,3996.5,3.50306]
[1733538099901,0.06742212,3997.5,3997.3,1.75115]
[1733538100411,0.06742212,3997.5,3996.6,0.7908]
[1733538100572,2.34341266,3997.2,3996.9,1.75135]
[1733538101016,0.06742757,3997.1,3996.9,1.75135]
[1733538102288,0.7401,3997.0,3996.3,0.7908]
[1733538102477,0.7401,3997.0,3995.6,1.75189]
[1733538102478,0.38236275,3996.9,3996.0,1.75175]
[1733538102700,0.38236275,3996.9,3996.5,1.75152]
[1733538103090,0.38236275,3996.9,3995.7,0.7908]
[1733538103091,0.38236275,3996.9,3995.8,0.02502307]
[1733538103289,0.38236275,3996.9,3996.7,1.75142]
[1733538104019,0.06726873,3996.9,3996.7,1.75142]
[1733538104219,8.73e-06,3996.9,3996.7,1.75142]
[1733538104380,0.7401,3997.7,3997.5,1.75108]
[1733538104692,0.06430821,3997.6,3997.5,1.75108]
[1733538111392,0.18655923,3997.8,3997.5,1.75108]
[1733538111721,0.56109547,3997.7,3997.5,1.75108]
[1733538111922,0.06450394,3997.6,3997.5,1.75108]
[1733538114696,1.23285675,3998.0,3997.8,1.75093]
[1733538114895,0.75767257,3998.2,3998.0,1.75087]
[1733538115128,0.75767257,3998.2,3997.7,1.75097]
[1733538115281,2.24587358,3998.1,3997.7,1.75097]
[1733538115483,0.86312661,3998.0,3997.8,1.75095]
[1733538115823,0.06523142,3997.9,3997.8,1.75095]
[1733538116120,1.38274697,3998.1,3997.8,1.75095]
[1733538116322,0.0653108,3998.0,3997.8,1.75095]
[1733538116484,0.45467345,3997.9,3997.8,1.75095]
[1733538116680,0.51990487,3997.9,3997.8,1.75095]
[1733538119512,0.06523142,3997.9,3997.8,1.75095]
[1733538119724,3.26757236,3998.3,3997.4,1.75109]
[1733538119889,0.92878284,3998.2,3997.9,1.75091]
[1733538120224,0.06558699,3998.2,3998.0,2.51227]
[1733538120393,0.06558699,3998.2,3998.1,1.75083]
[1733538120596,1.13466202,3998.2,3998.1,1.75083]
[1733538120924,1.20025879,3998.2,3998.1,1.75083]
[1733538123586,0.06559677,3998.2,3998.1,1.75083]
[1733538124028,2.34093182,3998.5,3998.1,1.75083]
[1733538124194,1.23285628,3998.5,3998.2,1.75078]
[1733538124396,0.86312078,3998.4,3998.2,1.75078]
[1733538124708,0.34698442,3998.3,3998.2,1.75078]
[1733538127285,0.41266056,3998.3,3998.2,1.75078]
[1733538127725,0.06567614,3998.3,3998.2,1.75078]
[1733538128227,0.18674205,3998.5,3998.3,1.7507]
[1733538128412,0.0792663,3998.6,3998.3,1.7507]
[1733538128621,0.18682058,3998.5,3998.3,1.7507]
[1733538128827,0.18682613,3998.4,3998.3,1.7507]
[1733538129134,1.34147964,3998.4,3998.3,1.7507]
[1733538129324,1.42074594,3998.4,3998.3,1.7507]
[1733538129528,1.34147964,3998.4,3998.3,1.7507]
[1733538129716,1.42080801,3998.4,3998.3,1.7507]
[1733538129912,1.34154171,3998.4,3998.3,1.7507]
[1733538130743,2.56744349,3998.4,3998.0,1.75083]
[1733538130929,0.44363255,3998.3,3998.0,1.75083]
[1733538131101,0.25268064,3998.2,3998.0,1.75083]
[1733538131439,0.06579244,3998.2,3998.1,1.75083]
[1733538131745,0.26627047,3998.2,3998.1,1.75083]
[1733538132040,0.33206291,3998.2,3998.1,1.75083]
[1733538132199,0.61446585,3998.2,3998.1,1.75083]
[1733538133027,0.53512939,3998.2,3998.1,1.75083]
[1733538133240,0.34819538,3998.2,3998.1,1.75083]
[1733538133417,0.06579244,3998.2,3998.1,2.54193]
[1733538133619,2.44e-06,3998.2,3998.1,2.54193]
[1733538133859,0.26645571,3999.2,3999.1,2.54149]
[1733538134006,1.08056861,3999.7,3999.6,1.75017]
[1733538134209,2.2094123,3999.7,3999.6,1.75017]
[1733538134506,2.2094123,3999.7,3999.1,0.7911]
[1733538134507,1.74618674,3999.7,3999.1,0.7911]
[1733538134738,1.12868867,3999.6,3998.9,1.75044]
[1733538134925,8.94,3999.3,3998.1,0.7911]
[1733538135124,1.12879177,3999.2,3998.4,1.75065]
[1733538135324,0.26643115,3999.1,3998.5,1.75065]
[1733538135524,1.24921213,3999.0,3998.5,1.75065]
[1733538135838,0.98278098,3999.0,3998.4,1.75065]
[1733538136554,0.7401,3998.9,3998.1,1.7508]
[1733538136745,0.26617821,3998.8,3998.1,1.7508]
[1733538136919,0.61973179,3998.7,3998.1,1.7508]
[1733538137253,0.05645194,3998.6,3998.1,1.7508]
[1733538137750,0.05645194,3998.6,3998.0,1.75086]
[1733538137961,0.7401,3998.5,3998.0,1.75086]
[1733538138140,0.79630633,3998.5,3997.7,1.75096]
[1733538138454,0.13085052,3998.4,3997.9,1.75091]
[1733538138819,0.05598402,3998.3,3997.9,1.75091]
[1733538142015,0.05598402,3998.3,3998.0,1.75086]
[1733538142219,0.05598402,3998.3,3998.2,1.75078]
[1733538142433,0.7401,3998.5,3998.2,1.75078]
[1733538142658,0.05562208,3998.3,3998.2,1.75078]
[1733538142815,0.7401,3998.5,3998.2,1.75078]
[1733538143020,0.05562208,3998.3,3998.1,1.75079]
[1733538143259,0.7401,3998.5,3998.2,1.75078]